[Event "Titled Tuesday Blitz April 25 Late 2023"]
[White "Kovalevsky, Stanislav"]
[Black "Hakobyan, Aram"]
[WhiteFideId "13508598"]
[BlackFideId "13306677"]
[WhiteElo "2174"]
[BlackElo "2584"]
[Result "0-1"]
[Round "04"]
[TimeControl "180+2"]
[Date "2023.04.25"]
[WhiteClock "0:00:14"]
[BlackClock "0:00:20"]

1. c4 {[%clk 0:03:00]}  g6 {[%clk 0:02:59]} 2. Nc3 {[%clk 0:03:01]}  Bg7 {[%clk 0:03:00]} 3. e4 {[%clk 0:03:00]}  c5 {[%clk 0:03:00]} 4. g3 {[%clk 0:03:00]}  Nc6 {[%clk 0:03:01]} 5. Bg2 {[%clk 0:03:00]}  d6 {[%clk 0:03:02]} 6. Nge2 {[%clk 0:03:00]}  h5 {[%clk 0:03:02]} 7. h3 {[%clk 0:02:58]}  Nf6 {[%clk 0:03:01]} 8. O-O {[%clk 0:02:56]}  h4 {[%clk 0:02:45]} 9. g4 {[%clk 0:02:56]}  Ne5 {[%clk 0:02:39]} 10. g5 {[%clk 0:02:42]}  Nfd7 {[%clk 0:02:29]} 11. d3 {[%clk 0:02:41]}  Nc6 {[%clk 0:02:23]} 12. f4 {[%clk 0:02:38]}  b6 {[%clk 0:02:23]} 13. e5 {[%clk 0:02:32]}  Bb7 {[%clk 0:02:24]} 14. exd6 {[%clk 0:02:32]}  exd6 {[%clk 0:02:12]} 15. Qe1 {[%clk 0:02:20]}  O-O {[%clk 0:02:07]} 16. Qxh4 {[%clk 0:02:19]}  Rb8 {[%clk 0:01:56]} 17. Nd5 {[%clk 0:02:02]}  Nd4 {[%clk 0:01:55]} 18. Nxd4 {[%clk 0:01:56]}  Bxd4+ {[%clk 0:01:55]} 19. Kh2 {[%clk 0:01:56]}  b5 {[%clk 0:01:54]} 20. Be4 {[%clk 0:01:45]}  bxc4 {[%clk 0:01:52]} 21. f5 {[%clk 0:01:43]}  Be5+ {[%clk 0:00:41]} 22. Bf4 {[%clk 0:01:42]}  Bxd5 {[%clk 0:00:42]} 23. fxg6 {[%clk 0:00:44]}  Rxb2+ {[%clk 0:00:41]} 24. Kg3 {[%clk 0:00:44]}  Re8 {[%clk 0:00:20]} 25. Qh7+ {[%clk 0:00:15]}  Kf8 {[%clk 0:00:20]} 26. Bxe5 {[%clk 0:00:16]}  Qxg5+ {[%clk 0:00:20]} 27. Kf3 {[%clk 0:00:14]}  Nxe5# {[%clk 0:00:20]} 0-1


[Site "https://www.chess.com"]

[Event "Titled Tuesday Blitz April 25 Late 2023"]
[White "Makaraci, Tunahan"]
[Black "Naroditsky, Daniel"]
[WhiteFideId "6356559"]
[BlackFideId "2026961"]
[WhiteElo "2160"]
[BlackElo "2633"]
[Result "0-1"]
[Round "04"]
[TimeControl "180+2"]
[Date "2023.04.25"]
[WhiteClock "0:00:01"]
[BlackClock "0:01:02"]

1. e4 {[%clk 0:03:00]}  c5 {[%clk 0:02:56]} 2. c3 {[%clk 0:03:01]}  d5 {[%clk 0:02:52]} 3. exd5 {[%clk 0:03:01]}  Nf6 {[%clk 0:02:52]} 4. d4 {[%clk 0:02:59]}  cxd4 {[%clk 0:02:53]} 5. cxd4 {[%clk 0:02:56]}  Nxd5 {[%clk 0:02:52]} 6. Nf3 {[%clk 0:02:56]}  Nc6 {[%clk 0:02:53]} 7. Nc3 {[%clk 0:02:55]}  e6 {[%clk 0:02:51]} 8. Bd3 {[%clk 0:02:54]}  Be7 {[%clk 0:02:51]} 9. O-O {[%clk 0:02:54]}  O-O {[%clk 0:02:52]} 10. Re1 {[%clk 0:02:52]}  Nf6 {[%clk 0:02:50]} 11. a3 {[%clk 0:02:47]}  b6 {[%clk 0:02:51]} 12. Bg5 {[%clk 0:02:45]}  Bb7 {[%clk 0:02:50]} 13. Bc2 {[%clk 0:02:42]}  Rc8 {[%clk 0:02:46]} 14. Qd3 {[%clk 0:02:40]}  g6 {[%clk 0:02:47]} 15. Rad1 {[%clk 0:02:39]}  Na5 {[%clk 0:02:41]} 16. Ne5 {[%clk 0:02:34]}  Nd5 {[%clk 0:02:41]} 17. Bh6 {[%clk 0:02:20]}  Re8 {[%clk 0:02:33]} 18. Qh3 {[%clk 0:00:48]}  Bf6 {[%clk 0:02:15]} 19. Rd3 {[%clk 0:00:43]}  Nc4 {[%clk 0:02:00]} 20. Rg3 {[%clk 0:00:32]}  Nxb2 {[%clk 0:01:39]} 21. Bxg6 {[%clk 0:00:21]}  hxg6 {[%clk 0:01:34]} 22. Nxg6 {[%clk 0:00:21]}  fxg6 {[%clk 0:01:34]} 23. Rxg6+ {[%clk 0:00:20]}  Kf7 {[%clk 0:01:34]} 24. Qh5 {[%clk 0:00:13]}  Ke7 {[%clk 0:01:35]} 25. Bg5 {[%clk 0:00:06]}  Rxc3 {[%clk 0:01:18]} 26. Qh7+ {[%clk 0:00:02]}  Kd6 {[%clk 0:01:19]} 27. Rxf6 {[%clk 0:00:01]}  Nxf6 {[%clk 0:01:15]} 28. Qxb7 {[%clk 0:00:01]}  Nd3 {[%clk 0:01:02]} 29. Re3 {[%clk 0:00:01]}  Rc1+ {[%clk 0:01:02]} 0-1


[Site "https://www.chess.com"]

[Event "Titled Tuesday Blitz April 25 Late 2023"]
[White "Martinez Alcantara, Jose Eduardo"]
[Black "Oro, Faustino"]
[WhiteFideId "3805662"]
[BlackFideId "20000197"]
[WhiteElo "2711"]
[BlackElo "1984"]
[Result "1-0"]
[Round "04"]
[TimeControl "180+2"]
[Date "2023.04.25"]
[WhiteClock "0:00:34"]
[BlackClock "0:00:02"]

1. e4 {[%clk 0:03:00]}  e5 {[%clk 0:02:59]} 2. Nf3 {[%clk 0:03:00]}  Nc6 {[%clk 0:02:59]} 3. Bb5 {[%clk 0:03:01]}  Nf6 {[%clk 0:02:57]} 4. d3 {[%clk 0:03:01]}  Bc5 {[%clk 0:02:56]} 5. O-O {[%clk 0:03:00]}  d6 {[%clk 0:02:56]} 6. c3 {[%clk 0:02:59]}  O-O {[%clk 0:02:55]} 7. Bg5 {[%clk 0:02:58]}  a6 {[%clk 0:02:48]} 8. Ba4 {[%clk 0:02:57]}  b5 {[%clk 0:02:47]} 9. Bb3 {[%clk 0:02:57]}  Bb6 {[%clk 0:02:41]} 10. a4 {[%clk 0:02:49]}  Rb8 {[%clk 0:02:33]} 11. axb5 {[%clk 0:02:48]}  axb5 {[%clk 0:02:34]} 12. Na3 {[%clk 0:02:27]}  b4 {[%clk 0:02:02]} 13. Nc4 {[%clk 0:02:23]}  Be6 {[%clk 0:02:02]} 14. Nxb6 {[%clk 0:02:07]}  Rxb6 {[%clk 0:02:03]} 15. Bxe6 {[%clk 0:02:03]}  fxe6 {[%clk 0:02:02]} 16. h3 {[%clk 0:02:00]}  h6 {[%clk 0:01:58]} 17. Be3 {[%clk 0:01:59]}  Rb7 {[%clk 0:01:52]} 18. Ra6 {[%clk 0:01:58]}  Qd7 {[%clk 0:01:39]} 19. Qa4 {[%clk 0:01:56]}  Nb8 {[%clk 0:01:39]} 20. Ra8 {[%clk 0:01:49]}  Qxa4 {[%clk 0:01:37]} 21. Rxa4 {[%clk 0:01:50]}  bxc3 {[%clk 0:01:33]} 22. bxc3 {[%clk 0:01:51]}  Nbd7 {[%clk 0:01:27]} 23. Rfa1 {[%clk 0:01:51]}  Rfb8 {[%clk 0:01:25]} 24. Nd2 {[%clk 0:01:41]}  Kf7 {[%clk 0:01:02]} 25. Kf1 {[%clk 0:01:30]}  Ke7 {[%clk 0:00:59]} 26. Ke2 {[%clk 0:01:30]}  Rb2 {[%clk 0:00:56]} 27. Ra7 {[%clk 0:01:29]}  R8b7 {[%clk 0:00:56]} 28. Rxb7 {[%clk 0:01:29]}  Rxb7 {[%clk 0:00:55]} 29. Kd1 {[%clk 0:01:29]}  d5 {[%clk 0:00:34]} 30. f3 {[%clk 0:00:53]}  c5 {[%clk 0:00:19]} 31. Kc2 {[%clk 0:00:53]}  Ne8 {[%clk 0:00:14]} 32. Nb3 {[%clk 0:00:50]}  Rc7 {[%clk 0:00:14]} 33. Ra5 {[%clk 0:00:50]}  c4 {[%clk 0:00:09]} 34. dxc4 {[%clk 0:00:51]}  dxe4 {[%clk 0:00:09]} 35. fxe4 {[%clk 0:00:50]}  Rxc4 {[%clk 0:00:09]} 36. Kd3 {[%clk 0:00:48]}  Rc6 {[%clk 0:00:05]} 37. Nc5 {[%clk 0:00:45]}  Nxc5+ {[%clk 0:00:03]} 38. Bxc5+ {[%clk 0:00:46]}  Kf6 {[%clk 0:00:03]} 39. c4 {[%clk 0:00:45]}  Kf7 {[%clk 0:00:01]} 40. Ra7+ {[%clk 0:00:40]}  Kg6 {[%clk 0:00:01]} 41. Bf8 {[%clk 0:00:36]}  Nf6 {[%clk 0:00:02]} 42. Rxg7+ {[%clk 0:00:35]}  Kh5 {[%clk 0:00:02]} 43. g4+ {[%clk 0:00:34]} 1-0


[Site "https://www.chess.com"]

[Event "Titled Tuesday Blitz April 25 Late 2023"]
[White "Barria Santos, Jose Guilherme"]
[Black "Goltsev, Dmitry"]
[WhiteFideId "1939300"]
[BlackFideId "24176710"]
[WhiteElo "2266"]
[BlackElo "2336"]
[Result "1-0"]
[Round "04"]
[TimeControl "180+2"]
[Date "2023.04.25"]
[WhiteClock "0:00:28"]
[BlackClock "0:00:17"]

1. e4 {[%clk 0:02:57]}  e6 {[%clk 0:02:56]} 2. d4 {[%clk 0:02:42]}  d5 {[%clk 0:02:57]} 3. Nd2 {[%clk 0:02:40]}  c5 {[%clk 0:02:57]} 4. exd5 {[%clk 0:02:38]}  exd5 {[%clk 0:02:58]} 5. Ngf3 {[%clk 0:02:30]}  Nf6 {[%clk 0:02:58]} 6. Bb5+ {[%clk 0:02:29]}  Nc6 {[%clk 0:02:56]} 7. O-O {[%clk 0:02:29]}  Be7 {[%clk 0:02:55]} 8. dxc5 {[%clk 0:02:28]}  Bxc5 {[%clk 0:02:55]} 9. Re1+ {[%clk 0:02:28]}  Be6 {[%clk 0:02:55]} 10. Nb3 {[%clk 0:02:26]}  Bb6 {[%clk 0:02:54]} 11. Nbd4 {[%clk 0:02:24]}  O-O {[%clk 0:02:52]} 12. c3 {[%clk 0:02:00]}  Ne4 {[%clk 0:02:44]} 13. Be3 {[%clk 0:01:56]}  Ne7 {[%clk 0:02:35]} 14. Bd3 {[%clk 0:01:47]}  Bg4 {[%clk 0:02:28]} 15. h3 {[%clk 0:01:46]}  Bh5 {[%clk 0:02:27]} 16. Qc2 {[%clk 0:01:45]}  Bg6 {[%clk 0:02:15]} 17. Ne5 {[%clk 0:01:43]}  Nc5 {[%clk 0:02:01]} 18. Nxg6 {[%clk 0:01:41]}  hxg6 {[%clk 0:01:58]} 19. Be2 {[%clk 0:01:39]}  Re8 {[%clk 0:01:54]} 20. Rad1 {[%clk 0:01:36]}  Rc8 {[%clk 0:01:53]} 21. Bg4 {[%clk 0:01:35]}  f5 {[%clk 0:01:51]} 22. Bf3 {[%clk 0:01:34]}  Nc6 {[%clk 0:01:45]} 23. Nxf5 {[%clk 0:01:21]}  Ne4 {[%clk 0:01:22]} 24. Bxb6 {[%clk 0:01:09]}  Qxb6 {[%clk 0:01:03]} 25. Bxe4 {[%clk 0:01:05]}  gxf5 {[%clk 0:00:22]} 26. Bxd5+ {[%clk 0:00:57]}  Kh8 {[%clk 0:00:21]} 27. Qxf5 {[%clk 0:00:56]}  Na5 {[%clk 0:00:11]} 28. Rxe8+ {[%clk 0:00:53]}  Rxe8 {[%clk 0:00:10]} 29. Qh5+ {[%clk 0:00:53]}  Qh6 {[%clk 0:00:11]} 30. Qxe8+ {[%clk 0:00:54]}  Kh7 {[%clk 0:00:10]} 31. Bg8+ {[%clk 0:00:55]}  Kh8 {[%clk 0:00:10]} 32. Bf7+ {[%clk 0:00:56]}  Kh7 {[%clk 0:00:11]} 33. Bg6+ {[%clk 0:00:42]}  Qxg6 {[%clk 0:00:08]} 34. Qxg6+ {[%clk 0:00:43]}  Kxg6 {[%clk 0:00:07]} 35. b4 {[%clk 0:00:43]}  Nc4 {[%clk 0:00:07]} 36. Rd7 {[%clk 0:00:43]}  b5 {[%clk 0:00:06]} 37. Rxa7 {[%clk 0:00:44]}  Kf6 {[%clk 0:00:07]} 38. Rb7 {[%clk 0:00:43]}  Nb2 {[%clk 0:00:07]} 39. Rxb5 {[%clk 0:00:42]}  g5 {[%clk 0:00:07]} 40. Ra5 {[%clk 0:00:39]}  Nd1 {[%clk 0:00:08]} 41. Rc5 {[%clk 0:00:39]}  Nb2 {[%clk 0:00:07]} 42. b5 {[%clk 0:00:34]}  Nd3 {[%clk 0:00:07]} 43. Rc6+ {[%clk 0:00:32]}  Kf5 {[%clk 0:00:07]} 44. b6 {[%clk 0:00:33]}  Ne5 {[%clk 0:00:07]} 45. Rc5 {[%clk 0:00:32]}  Kf4 {[%clk 0:00:08]} 46. Rxe5 {[%clk 0:00:32]}  Kxe5 {[%clk 0:00:08]} 47. b7 {[%clk 0:00:33]}  g4 {[%clk 0:00:08]} 48. b8=Q+ {[%clk 0:00:34]}  Kf5 {[%clk 0:00:09]} 49. hxg4+ {[%clk 0:00:33]}  Kg5 {[%clk 0:00:09]} 50. a4 {[%clk 0:00:28]}  Kh4 {[%clk 0:00:08]} 51. Qg3+ {[%clk 0:00:27]}  Kg5 {[%clk 0:00:09]} 52. a5 {[%clk 0:00:27]}  Kf6 {[%clk 0:00:10]} 53. a6 {[%clk 0:00:28]}  Ke6 {[%clk 0:00:11]} 54. a7 {[%clk 0:00:28]}  Kd5 {[%clk 0:00:12]} 55. a8=N {[%clk 0:00:27]}  Kc4 {[%clk 0:00:13]} 56. g5 {[%clk 0:00:26]}  Kb3 {[%clk 0:00:13]} 57. g6 {[%clk 0:00:27]}  Kc2 {[%clk 0:00:14]} 58. g7 {[%clk 0:00:27]}  Kb3 {[%clk 0:00:15]} 59. g8=N {[%clk 0:00:27]}  Kc2 {[%clk 0:00:16]} 60. f4 {[%clk 0:00:27]}  Kd2 {[%clk 0:00:17]} 61. f5 {[%clk 0:00:28]} 1-0


[Site "https://www.chess.com"]

[Event "Titled Tuesday Blitz April 25 Late 2023"]
[White "Gupta, Abhijeet"]
[Black "Chernobay, Artem"]
[WhiteFideId "5010608"]
[BlackFideId "4167406"]
[WhiteElo "2528"]
[BlackElo "2474"]
[Result "0-1"]
[Round "04"]
[TimeControl "180+2"]
[Date "2023.04.25"]
[WhiteClock "0:00:09"]
[BlackClock "0:00:06"]

1. d4 {[%clk 0:03:00]}  Nf6 {[%clk 0:02:58]} 2. Nf3 {[%clk 0:03:01]}  e6 {[%clk 0:02:57]} 3. Bf4 {[%clk 0:03:01]}  c5 {[%clk 0:02:55]} 4. e3 {[%clk 0:03:01]}  d5 {[%clk 0:02:52]} 5. c3 {[%clk 0:03:00]}  Bd6 {[%clk 0:02:46]} 6. Nbd2 {[%clk 0:02:58]}  O-O {[%clk 0:02:41]} 7. Ne5 {[%clk 0:02:58]}  b6 {[%clk 0:02:32]} 8. Bd3 {[%clk 0:02:56]}  Qc7 {[%clk 0:02:31]} 9. Ndf3 {[%clk 0:02:54]}  Ba6 {[%clk 0:02:29]} 10. Bxa6 {[%clk 0:02:53]}  Nxa6 {[%clk 0:02:29]} 11. h4 {[%clk 0:02:48]}  b5 {[%clk 0:02:12]} 12. h5 {[%clk 0:02:45]}  b4 {[%clk 0:02:02]} 13. h6 {[%clk 0:02:45]}  g6 {[%clk 0:02:01]} 14. O-O {[%clk 0:02:43]}  bxc3 {[%clk 0:01:43]} 15. bxc3 {[%clk 0:02:42]}  Ne4 {[%clk 0:01:43]} 16. Rc1 {[%clk 0:02:37]}  f6 {[%clk 0:01:30]} 17. Nd3 {[%clk 0:02:35]}  c4 {[%clk 0:01:30]} 18. Bxd6 {[%clk 0:02:31]}  Qxd6 {[%clk 0:01:31]} 19. Nf4 {[%clk 0:02:32]}  Nc7 {[%clk 0:01:27]} 20. Nd2 {[%clk 0:02:30]}  Nxd2 {[%clk 0:01:16]} 21. Qxd2 {[%clk 0:02:31]}  Rfb8 {[%clk 0:01:14]} 22. Rb1 {[%clk 0:02:30]}  Qf8 {[%clk 0:01:09]} 23. Qc2 {[%clk 0:02:07]}  Qxh6 {[%clk 0:01:07]} 24. Rxb8+ {[%clk 0:02:07]}  Rxb8 {[%clk 0:01:07]} 25. Qa4 {[%clk 0:02:02]}  Qg7 {[%clk 0:00:41]} 26. Qxa7 {[%clk 0:01:59]}  Rb2 {[%clk 0:00:33]} 27. Qa3 {[%clk 0:01:51]}  Rb7 {[%clk 0:00:26]} 28. Qd6 {[%clk 0:01:46]}  Qf7 {[%clk 0:00:22]} 29. a4 {[%clk 0:01:42]}  g5 {[%clk 0:00:18]} 30. Ne2 {[%clk 0:01:22]}  Ne8 {[%clk 0:00:18]} 31. Qa6 {[%clk 0:01:14]}  Ra7 {[%clk 0:00:17]} 32. Qb5 {[%clk 0:00:58]}  Qd7 {[%clk 0:00:16]} 33. Rb1 {[%clk 0:00:56]}  Qxb5 {[%clk 0:00:16]} 34. axb5 {[%clk 0:00:57]}  Nd6 {[%clk 0:00:16]} 35. Ng3 {[%clk 0:00:48]}  Rb7 {[%clk 0:00:15]} 36. b6 {[%clk 0:00:49]}  Nc8 {[%clk 0:00:15]} 37. e4 {[%clk 0:00:46]}  Rxb6 {[%clk 0:00:15]} 38. Ra1 {[%clk 0:00:47]}  Nd6 {[%clk 0:00:12]} 39. e5 {[%clk 0:00:37]}  fxe5 {[%clk 0:00:11]} 40. dxe5 {[%clk 0:00:38]}  Nb5 {[%clk 0:00:10]} 41. Rb1 {[%clk 0:00:30]}  d4 {[%clk 0:00:10]} 42. cxd4 {[%clk 0:00:29]}  c3 {[%clk 0:00:10]} 43. Ne2 {[%clk 0:00:16]}  c2 {[%clk 0:00:10]} 44. Rc1 {[%clk 0:00:14]}  Na3 {[%clk 0:00:10]} 45. Kf1 {[%clk 0:00:14]}  Rb3 {[%clk 0:00:08]} 46. Ke1 {[%clk 0:00:14]}  Rd3 {[%clk 0:00:08]} 47. Ra1 {[%clk 0:00:13]}  Nb1 {[%clk 0:00:07]} 48. f3 {[%clk 0:00:13]}  Rd1+ {[%clk 0:00:06]} 49. Kf2 {[%clk 0:00:14]}  Rd2 {[%clk 0:00:06]} 50. Ke3 {[%clk 0:00:13]}  Rxe2+ {[%clk 0:00:05]} 51. Kxe2 {[%clk 0:00:12]}  c1=Q {[%clk 0:00:06]} 52. Ra7 {[%clk 0:00:11]}  Qd2+ {[%clk 0:00:06]} 53. Kf1 {[%clk 0:00:11]}  Qxd4 {[%clk 0:00:06]} 54. Rb7 {[%clk 0:00:10]}  Nc3 {[%clk 0:00:06]} 55. Rb8+ {[%clk 0:00:09]}  Kg7 {[%clk 0:00:06]} 56. g4 {[%clk 0:00:09]}  Qxe5 {[%clk 0:00:06]} 57. Rb7+ {[%clk 0:00:09]}  Kg6 {[%clk 0:00:06]} 58. Rb4 {[%clk 0:00:08]}  Qe2+ {[%clk 0:00:05]} 59. Kg1 {[%clk 0:00:09]}  Nd5 {[%clk 0:00:06]} 60. Re4 {[%clk 0:00:09]}  Qxf3 {[%clk 0:00:06]} 61. Rxe6+ {[%clk 0:00:09]}  Kf7 {[%clk 0:00:06]} 0-1


[Site "https://www.chess.com"]

[Event "Titled Tuesday Blitz April 25 Late 2023"]
[White "Soham Kamotra"]
[Black "Van Foreest, Jorden"]
[WhiteFideId "46647490"]
[BlackFideId "1039784"]
[WhiteElo "2209"]
[BlackElo "2633"]
[Result "0-1"]
[Round "04"]
[TimeControl "180+2"]
[Date "2023.04.25"]
[WhiteClock "0:00:01"]
[BlackClock "0:00:36"]

1. d4 {[%clk 0:03:00]}  Nf6 {[%clk 0:02:59]} 2. Bf4 {[%clk 0:03:01]}  d5 {[%clk 0:02:57]} 3. e3 {[%clk 0:03:01]}  c5 {[%clk 0:02:52]} 4. Nf3 {[%clk 0:03:01]}  e6 {[%clk 0:02:52]} 5. Nbd2 {[%clk 0:03:00]}  Bd6 {[%clk 0:02:52]} 6. c3 {[%clk 0:02:57]}  Bxf4 {[%clk 0:02:50]} 7. exf4 {[%clk 0:02:58]}  Qb6 {[%clk 0:02:47]} 8. Qb3 {[%clk 0:02:57]}  O-O {[%clk 0:02:45]} 9. dxc5 {[%clk 0:02:55]}  Qxc5 {[%clk 0:02:44]} 10. Bd3 {[%clk 0:02:56]}  b6 {[%clk 0:02:42]} 11. Qa4 {[%clk 0:02:50]}  Bb7 {[%clk 0:02:41]} 12. O-O {[%clk 0:02:47]}  Nbd7 {[%clk 0:02:41]} 13. Rfe1 {[%clk 0:02:45]}  Qc7 {[%clk 0:02:41]} 14. Qd4 {[%clk 0:02:38]}  Qc5 {[%clk 0:02:32]} 15. Bc2 {[%clk 0:02:30]}  Qxd4 {[%clk 0:02:32]} 16. Nxd4 {[%clk 0:02:31]}  a6 {[%clk 0:02:31]} 17. a4 {[%clk 0:02:26]}  Rac8 {[%clk 0:02:30]} 18. g3 {[%clk 0:02:20]}  g6 {[%clk 0:02:29]} 19. N2f3 {[%clk 0:02:01]}  Ne4 {[%clk 0:02:23]} 20. Ne5 {[%clk 0:01:33]}  Ndf6 {[%clk 0:02:19]} 21. f3 {[%clk 0:01:29]}  Nd6 {[%clk 0:02:19]} 22. Kf2 {[%clk 0:01:27]}  Rc7 {[%clk 0:02:18]} 23. g4 {[%clk 0:01:23]}  Kg7 {[%clk 0:02:18]} 24. Rad1 {[%clk 0:01:19]}  Re8 {[%clk 0:02:16]} 25. Kg3 {[%clk 0:01:18]}  Nd7 {[%clk 0:02:04]} 26. Bd3 {[%clk 0:01:13]}  Nc5 {[%clk 0:02:02]} 27. Bc2 {[%clk 0:01:13]}  f6 {[%clk 0:02:01]} 28. Nd3 {[%clk 0:01:11]}  Kf7 {[%clk 0:02:01]} 29. g5 {[%clk 0:01:07]}  Nc4 {[%clk 0:01:41]} 30. Rb1 {[%clk 0:00:36]}  e5 {[%clk 0:01:33]} 31. Nb3 {[%clk 0:00:22]}  Nxb3 {[%clk 0:01:32]} 32. Bxb3 {[%clk 0:00:17]}  Nd2 {[%clk 0:01:32]} 33. fxe5 {[%clk 0:00:17]}  Nxb1 {[%clk 0:01:26]} 34. gxf6 {[%clk 0:00:13]}  Nd2 {[%clk 0:01:25]} 35. Ba2 {[%clk 0:00:12]}  Nc4 {[%clk 0:01:19]} 36. f4 {[%clk 0:00:11]}  Bc8 {[%clk 0:01:16]} 37. Re2 {[%clk 0:00:10]}  a5 {[%clk 0:01:15]} 38. Ne1 {[%clk 0:00:06]}  h6 {[%clk 0:01:13]} 39. Nc2 {[%clk 0:00:06]}  g5 {[%clk 0:01:12]} 40. Nd4 {[%clk 0:00:06]}  Bd7 {[%clk 0:01:07]} 41. b3 {[%clk 0:00:05]}  gxf4+ {[%clk 0:01:03]} 42. Kxf4 {[%clk 0:00:04]}  Nxe5 {[%clk 0:01:04]} 43. Rxe5 {[%clk 0:00:05]}  Rxe5 {[%clk 0:01:01]} 44. Kxe5 {[%clk 0:00:06]}  Rxc3 {[%clk 0:01:02]} 45. b4 {[%clk 0:00:06]}  axb4 {[%clk 0:00:55]} 46. Bxd5+ {[%clk 0:00:07]}  Kf8 {[%clk 0:00:56]} 47. Kd6 {[%clk 0:00:07]}  Bxa4 {[%clk 0:00:57]} 48. Ne6+ {[%clk 0:00:07]}  Ke8 {[%clk 0:00:51]} 49. Ng7+ {[%clk 0:00:02]}  Kf8 {[%clk 0:00:45]} 50. Ne6+ {[%clk 0:00:02]}  Kf7 {[%clk 0:00:45]} 51. Nc5+ {[%clk 0:00:01]}  Kxf6 {[%clk 0:00:46]} 52. Nxa4 {[%clk 0:00:02]}  Rd3 {[%clk 0:00:46]} 53. Nxb6 {[%clk 0:00:03]}  b3 {[%clk 0:00:45]} 54. Nc4 {[%clk 0:00:03]}  Rh3 {[%clk 0:00:42]} 55. Kc5 {[%clk 0:00:03]}  Rxh2 {[%clk 0:00:43]} 56. Ne3 {[%clk 0:00:02]}  b2 {[%clk 0:00:40]} 57. Be4 {[%clk 0:00:02]}  Re2 {[%clk 0:00:40]} 58. Nd5+ {[%clk 0:00:03]}  Ke5 {[%clk 0:00:40]} 59. Bg6 {[%clk 0:00:03]}  Rg2 {[%clk 0:00:39]} 60. Bh7 {[%clk 0:00:03]}  Rg7 {[%clk 0:00:38]} 61. Bd3 {[%clk 0:00:02]}  Rg3 {[%clk 0:00:38]} 62. Bc2 {[%clk 0:00:02]}  h5 {[%clk 0:00:37]} 63. Kc4 {[%clk 0:00:01]}  Rg4+ {[%clk 0:00:36]} 0-1


[Site "https://www.chess.com"]

[Event "Titled Tuesday Blitz April 25 Late 2023"]
[White "Martinez Reyes, Pedro Ramon"]
[Black "Melkumyan, Hrant"]
[WhiteFideId "3901807"]
[BlackFideId "13302485"]
[WhiteElo "2340"]
[BlackElo "2604"]
[Result "0-1"]
[Round "04"]
[TimeControl "180+2"]
[Date "2023.04.25"]
[WhiteClock "0:00:02"]
[BlackClock "0:00:03"]

1. e4 {[%clk 0:03:00]}  e5 {[%clk 0:02:54]} 2. Nf3 {[%clk 0:03:00]}  Nc6 {[%clk 0:02:53]} 3. d4 {[%clk 0:02:59]}  exd4 {[%clk 0:02:53]} 4. Nxd4 {[%clk 0:03:00]}  Nf6 {[%clk 0:02:53]} 5. Nxc6 {[%clk 0:02:59]}  bxc6 {[%clk 0:02:52]} 6. Bd3 {[%clk 0:02:59]}  d6 {[%clk 0:02:49]} 7. O-O {[%clk 0:02:55]}  g6 {[%clk 0:02:49]} 8. Re1 {[%clk 0:02:52]}  Nd7 {[%clk 0:02:46]} 9. Nc3 {[%clk 0:02:41]}  Bg7 {[%clk 0:02:45]} 10. Be3 {[%clk 0:02:37]}  O-O {[%clk 0:02:44]} 11. Qd2 {[%clk 0:02:37]}  Re8 {[%clk 0:02:30]} 12. Bg5 {[%clk 0:02:34]}  Bf6 {[%clk 0:02:21]} 13. Bh6 {[%clk 0:02:19]}  a5 {[%clk 0:02:14]} 14. Rad1 {[%clk 0:02:17]}  a4 {[%clk 0:02:12]} 15. b3 {[%clk 0:02:05]}  Nc5 {[%clk 0:02:11]} 16. Be3 {[%clk 0:01:56]}  Qe7 {[%clk 0:01:39]} 17. Bxc5 {[%clk 0:01:51]}  dxc5 {[%clk 0:01:40]} 18. e5 {[%clk 0:01:48]}  Bg7 {[%clk 0:01:37]} 19. Bc4 {[%clk 0:01:44]}  axb3 {[%clk 0:01:33]} 20. axb3 {[%clk 0:01:43]}  Be6 {[%clk 0:01:32]} 21. Qe2 {[%clk 0:01:40]}  Qh4 {[%clk 0:01:18]} 22. g3 {[%clk 0:01:03]}  Bxc4 {[%clk 0:01:18]} 23. bxc4 {[%clk 0:01:03]}  Qh3 {[%clk 0:01:13]} 24. f4 {[%clk 0:01:00]}  h5 {[%clk 0:01:11]} 25. Rd3 {[%clk 0:00:58]}  Qe6 {[%clk 0:01:07]} 26. Re3 {[%clk 0:00:55]}  Red8 {[%clk 0:01:07]} 27. Ne4 {[%clk 0:00:55]}  Rd4 {[%clk 0:01:03]} 28. Ng5 {[%clk 0:00:55]}  Qxc4 {[%clk 0:01:01]} 29. e6 {[%clk 0:00:52]}  f6 {[%clk 0:00:50]} 30. e7 {[%clk 0:00:52]}  Re8 {[%clk 0:00:48]} 31. Ne6 {[%clk 0:00:31]}  Qxe2 {[%clk 0:00:45]} 32. R3xe2 {[%clk 0:00:30]}  Rd7 {[%clk 0:00:40]} 33. Nxc5 {[%clk 0:00:24]}  Rd5 {[%clk 0:00:40]} 34. Nd3 {[%clk 0:00:09]}  f5 {[%clk 0:00:35]} 35. Re6 {[%clk 0:00:09]}  Kf7 {[%clk 0:00:35]} 36. Rxc6 {[%clk 0:00:09]}  Rd7 {[%clk 0:00:33]} 37. Ree6 {[%clk 0:00:09]}  Rexe7 {[%clk 0:00:28]} 38. Rxg6 {[%clk 0:00:09]}  Re2 {[%clk 0:00:18]} 39. Rg5 {[%clk 0:00:09]}  Bd4+ {[%clk 0:00:18]} 40. Kf1 {[%clk 0:00:09]}  Rxh2 {[%clk 0:00:17]} 41. Rxf5+ {[%clk 0:00:09]}  Ke7 {[%clk 0:00:17]} 42. Rg5 {[%clk 0:00:08]}  Kd8 {[%clk 0:00:11]} 43. Rg8+ {[%clk 0:00:07]}  Ke7 {[%clk 0:00:11]} 44. Rh6 {[%clk 0:00:07]}  Kf7 {[%clk 0:00:09]} 45. Rg5 {[%clk 0:00:05]}  Rd6 {[%clk 0:00:02]} 46. Rh7+ {[%clk 0:00:05]}  Kf6 {[%clk 0:00:03]} 47. Rhxh5 {[%clk 0:00:05]}  Rxc2 {[%clk 0:00:02]} 48. Rh6+ {[%clk 0:00:06]}  Kf7 {[%clk 0:00:02]} 49. Rh7+ {[%clk 0:00:05]}  Kf6 {[%clk 0:00:02]} 50. Rh6+ {[%clk 0:00:05]}  Kf7 {[%clk 0:00:02]} 51. Rxd6 {[%clk 0:00:06]}  cxd6 {[%clk 0:00:02]} 52. Rd5 {[%clk 0:00:07]}  Be3 {[%clk 0:00:01]} 53. Rxd6 {[%clk 0:00:07]}  Ke7 {[%clk 0:00:02]} 54. Rd5 {[%clk 0:00:07]}  Kf6 {[%clk 0:00:02]} 55. Rd7 {[%clk 0:00:05]}  Ke6 {[%clk 0:00:02]} 56. Rd8 {[%clk 0:00:05]}  Kf5 {[%clk 0:00:03]} 57. Rd5+ {[%clk 0:00:04]}  Ke4 {[%clk 0:00:03]} 58. Rd6 {[%clk 0:00:04]}  Ra2 {[%clk 0:00:02]} 59. g4 {[%clk 0:00:02]}  Kf3 {[%clk 0:00:02]} 60. Ne1+ {[%clk 0:00:02]}  Kg3 {[%clk 0:00:03]} 0-1


[Site "https://www.chess.com"]